Cogmind - Beta 11.1 @@@ ROGUE MODE // 2022.06.21 @ 20:10:10 Player: BoboTMG Result: Destroyed by Y-45 Defender with Heavy Assault Rifle Performance ------------- Evolutions (1) 500 Regions Visited (2) 400 Robots Destroyed (35) 175 Value Destroyed (724) 724 Prototype IDs (5) 100 Alien Tech Used (0) 0 Bonus (28) 28 TOTAL SCORE: 1927 Bonus ------- High Alert Combat Kills 28 Cogmind --------- Core Integrity 0/400 Matter 255/300 Energy 74/125 System Corruption 2% Temperature Cool (21) Movement Core (1450) Ox28 Location -9/Materials Parts ------- > --- POWER (1) -------- Light Ion Engine > --- PROPULSION (3) --- (None) > --- UTILITY (3) ------ Huge Storage Unit Hacking Suite > --- WEAPON (2) ------- Medium Laser Light Assault Rifle > --- INVENTORY (25) --- Light Ion Engine Light Ion Engine Light Ion Engine Light Ion Engine Light Ion Engine Light Ion Engine Large Battery (200) Large Battery (200) Signal Interpreter Utility Shielding Tractor Beam Small Laser Particle Gun Light Assault Rifle Heavy Assault Rifle Light Cannon Light Cannon Grenade Launcher Mining Laser Peak State ------------ > --- POWER ------------ Ion Engine > --- PROPULSION ------- Compact Wheel Compact Wheel Compact Wheel > --- UTILITY ---------- Huge Storage Unit Utility Shielding Hacking Suite > --- WEAPON ----------- Light Assault Rifle Light Cannon > --- INVENTORY -------- Light Ion Engine Light Ion Engine Light Ion Engine Light Ion Engine Light Ion Engine Light Ion Engine Compact Wheel Small Storage Unit Large Storage Unit Large Battery Large Battery Signal Interpreter Utility Shielding Tractor Beam Medium Laser Light Assault Rifle Light Assault Rifle Light Assault Rifle Light Cannon Light Cannon Grenade Launcher Mining Laser [Rating: 13] Favorites ----------- Power Ion Engine Engine Ion Engine Propulsion Compact Wheel Wheel Compact Wheel Utility Huge Storage Unit Device Tractor Beam Storage Huge Storage Unit Hackware Hacking Suite Protection Utility Shielding Weapon Light Assault Rifle Energy Gun Small Laser Ballistic Gun Light Assault Rifle Ballistic Cannon Light Cannon Launcher Grenade Launcher Build | -11 -10 -9 ------- Run | Scr Mat Mat Slots Evolved 2 | . . 2 Power . | . . . Propulsion 1 | . . 1 Utility 1 | . . 1 Weapon . | . . . Parts Attached 31 | 6 15 10 Power 4 | 1 1 2 Engine 4 | 1 1 2 Core . | . . . Reactor . | . . . Propulsion 7 | 2 3 2 Treads . | . . . Leg . | . . . Wheel 7 | 2 3 2 Hover . | . . . Flight . | . . . Utility 12 | 1 8 3 Device 1 | . 1 . Storage 6 | 1 4 1 Processor . | . . . Hackware 1 | . . 1 Protection 4 | . 3 1 Artifact . | . . . Weapon 8 | 2 3 3 Energy Gun 2 | 1 . 1 Energy Cannon . | . . . Ballistic Gun 3 | 1 1 1 Ballistic Cannon 2 | . 1 1 Launcher 1 | . 1 . Special Weapon . | . . . Impact Weapon . | . . . Slashing Weapon . | . . . Piercing Weapon . | . . . Special Melee Weapon . | . . . Unidentified Prototypes . | . . . Parts Lost 8 | . 2 6 Power 1 | . . 1 Propulsion 4 | . 1 3 Utility 1 | . . 1 Weapon 2 | . 1 1 Highest Loss Streak 6 | . 2 6 To Critical Strikes . | . . . Average Slot Usage (%) 96 | . 95 96 Engine 12 | . 13 10 Wheel 28 | . 26 31 Storage 13 | . 14 11 Hackware 2 | . . 10 Protection 10 | . 10 10 Energy Gun 6 | . 9 . Ballistic Gun 13 | . 14 11 Ballistic Cannon 5 | . 4 10 Naked Turns . | . . . Heaviest Build 93 | 12 90 93 Greatest Support 48 | 20 32 48 Greatest Overweight (x) 8 | . 8 1 Average Overweight (x) 2 | . 3 1 Largest Inventory Capacity 25 | 8 25 25 Average Capacity 24 | 6 24 25 Most Carried 23 | 2 22 23 Average Carried 18 | 1 17 21 Final Capacity 25 | 8 25 25 Final Carried 22 | 2 22 19 Class Distribution -------------------- 77% | Mutant 22% | Scavenger-Mutant Dominant Class ---------------- Mutant | -10/Materials Scavenger-Mutant | -9/Materials Resources | -11 -10 -9 ----------- Run | Scr Mat Mat Matter Collected 779 | 214 345 220 Remotely 21 | . 21 . Salvage Created 1121 | . 618 503 Parts 69 | . 32 37 Haulers Intercepted . | . . . Recyclers Shooed 5 | . 5 . Parts Field Recycled . | . . . Retrieved Matter . | . . . Parts Self-Destructed . | . . . Prevented . | . . . Kills | -11 -10 -9 ------- Run | Scr Mat Mat Combat Hostiles Destroyed 22 | . 8 14 Guns 9 | . 7 2 Cannons 12 | . . 12 AOE 1 | . 1 . Classes Destroyed 7 | . 4 3 Recycler 6 | . 6 . Operator 2 | . . 2 Watcher 5 | . 3 2 Swarmer 10 | . 6 4 Grunt 8 | . 2 6 Brawler 1 | . . 1 Sentry 3 | . . 3 Best Kill Streak 8 | . 8 8 Combat Bots Only 7 | . 5 7 Max Kills in Single Turn 1 | . 1 1 Gunslinging . | . . . Exploded 1 | . 1 . Melee . | . . . Uniques/NPCs Destroyed . | . . . Combat | -11 -10 -9 -------- Run | Scr Mat Mat Damage Taken 1438 | . 443 995 Core 540 | . 128 412 Absorbed by Shields . | . . . Redirected to Shielding 19 | . . 19 Regen/Repaired (Parts) 50 | . 50 . Core Remaining (%) 74 | 100 48 . Volleys Fired 114 | . 67 47 Largest 2 | . 2 2 Hottest 70 | . 60 70 Shots Fired 209 | . 124 85 Gun 155 | . 107 48 Cannon 50 | . 13 37 Launcher 4 | . 4 . Special . | . . . Kinetic 164 | . 80 84 Thermal 41 | . 40 1 Explosive 4 | . 4 . Electromagnetic . | . . . Robot Hit Streak 9 | . 5 9 Robot Miss Streak 7 | . 7 6 Penetration Max . | . . . Secondary Targets . | . . . Shots Hit Robots 116 | . 63 53 Core Hits 52 | . 27 25 Critical Kills . | . . . Critical Parts Destroyed 2 | . 2 . Critical Strikes 6 | . 3 3 Destroy 2 | . 2 . Blast 4 | . 1 3 Melee Attacks . | . . . Impact . | . . . Slashing . | . . . Piercing . | . . . Sneak Attacks . | . . . Combat Hostiles . | . . . Follow-up Attacks . | . . . Damage Inflicted 1430 | . 737 693 Guns 723 | . 483 240 Cannons 594 | . 141 453 Explosions 113 | . 113 . Melee . | . . . Ramming . | . . . Kinetic 1085 | . 405 680 Thermal 232 | . 219 13 Explosive 113 | . 113 . Electromagnetic . | . . . Impact . | . . . Slashing . | . . . Piercing . | . . . Highest Corruption 2 | . . 2 Average Corruption 2 | . . 2 Corruption Purged . | . . . Corruption Blocked . | . . . Overload Shots . | . . . Overflow Damage 30 | . 30 . Projectiles 16 | . 16 . Explosions 14 | . 14 . Melee . | . . . Knockbacks 6 | . 3 3 Impact . | . . . Kinetic 6 | . 3 3 Secondary . | . . . Self-Inflicted Damage 32 | . 32 . Shots 1 | . 1 . Rammed . | . . . Targets Rammed . | . . . Kicked . | . . . Crushed . | . . . Highest Temperature 40 | . 40 35 Average Temperature 13 | . 16 9 Received Heat Transfer 426 | . 99 327 Siege Activations . | . . . Robots Corrupted . | . . . Combat Hostiles . | . . . Parts Fried . | . . . Impact Corruptions . | . . . Robots Melted . | . . . Combat Hostiles . | . . . Parts Melted . | . . . Heat Transferred 537 | . 500 37 Parts Sabotaged . | . . . Parts Stolen . | . . . Parts Stripped . | . . . Power Chain Reactions . | . . . Missiles Intercepted . | . . . Alert | -11 -10 -9 ------- Run | Scr Mat Mat Peak Influence 478 | . 200 478 Initial 20 | . . 20 Average 109 | . 71 240 Maximum Alert Level 2 | . 1 2 Low Security (%) 83 | 100 94 47 Level 1 10 | . 5 26 Level 2 6 | . . 25 Level 3 . | . . . Level 4 . | . . . Level 5 . | . . . High Security . | . . . Max Security . | . . . Squads Dispatched 2 | . . 2 Investigation 1 | . . 1 Extermination . | . . . Reinforcement 1 | . . 1 Assault . | . . . Garrison . | . . . Intercept . | . . . Searches Triggered . | . . . Construction Impeded . | . . . Haulers Reinforced . | . . . Active Scanning Responses . | . . . Cargo Convoy Interrupts . | . . . Stealth | -11 -10 -9 --------- Run | Scr Mat Mat Distress Signals 3 | . . 3 Communications Jammed . | . . . Distress Signals . | . . . Times Spotted 37 | . 12 25 Peak Tracking Total 9 | . 3 9 Tactical Retreats . | . . . Traps | -11 -10 -9 ------- Run | Scr Mat Mat Traps Triggered 1 | . . 1 Indirectly . | . . . Trap Hack Attempts . | . . . Triggered . | . . . Disarmed . | . . . Reprogrammed . | . . . Reused . | . . . Traps Extracted . | . . . Installed . | . . . Triggered . | . . . Machines | -11 -10 -9 ---------- Run | Scr Mat Mat Machines Disabled 2 | . . 2 Max in Single Turn 1 | . . 1 Machines Sabotaged . | . . . Garrisons Compromised . | . . . Overloaded Fab Kills . | . . . Hacking | -11 -10 -9 --------- Run | Scr Mat Mat Machines Accessed 8 | . 7 1 Terminals 6 | . 6 . Fabricators . | . . . Repair Stations 1 | . 1 . Recycling Units . | . . . Scanalyzers 1 | . . 1 Garrison Access . | . . . Total Hacks 24 | . 20 4 Successful 19 | . 15 4 Failed 5 | . 5 . Catastrophic . | . . . Database Lockouts . | . . . Manual . | . . . Terminals 13 | . 13 . Fabricators . | . . . Repair Stations 7 | . 7 . Recycling Units . | . . . Scanalyzers 4 | . . 4 Garrison Access . | . . . Terminal Hacks 8 | . 8 . Prototype ID Bank 3 | . 3 . Branch Access Points 1 | . 1 . Alert Level 1 | . 1 . Locate Traps 2 | . 2 . Maintenance Status 1 | . 1 . Fabricator Hacks . | . . . Repair Station Hacks 7 | . 7 . Scan Component 4 | . 4 . Repair 3 | . 3 . Recycling Unit Hacks . | . . . Scanalyzer 4 | . . 4 Insert Component 2 | . . 2 Analyze 2 | . . 2 Garrison Access Hacks . | . . . Unauthorized Hacks . | . . . Terminals . | . . . Fabricators . | . . . Repair Stations . | . . . Recycling Units . | . . . Scanalyzers . | . . . Garrison Access . | . . . Data Cores Recovered . | . . . Used . | . . . Hacking Detections 5 | . 4 1 Full Trace Events . | . . . Feedback Events . | . . . Feedback Blocked . | . . . Robot Schematics Acquired . | . . . Robots Built . | . . . Authchips . | . . . Time . | . . . Total Robot Build Rating . | . . . Part Schematics Acquired 2 | . . 2 Parts Built . | . . . Authchips . | . . . Time . | . . . Total Part Build Rating . | . . . Parts Repaired 3 | . 3 . Time 78 | . 78 . Parts Recycled . | . . . Recycled Matter . | . . . Retrieved Matter . | . . . Retrieved Components . | . . . Parts Scanalyzed 2 | . . 2 Part Schematics Acquired 2 | . . 2 Parts Damaged . | . . . Bothacking | -11 -10 -9 ------------ Run | Scr Mat Mat Used RIF Installer . | . . . Robots Hacked . | . . . Non-combat . | . . . Combat . | . . . Robot Hacks Applied . | . . . Relay Couplers Released . | . . . Fabnet Peak Effective % . | . . . Robots Rewired . | . . . Allies Hacked . | . . . Hacks Repelled . | . . . Allies | -11 -10 -9 -------- Run | Scr Mat Mat Total Allies . | . . . Largest Group . | . . . Highest-Rated Group . | . . . Highest-Rated Ally . | . . . Total Orders . | . . . Ally Attacks . | . . . Total Damage . | . . . Kills . | . . . Allies Corrupted . | . . . Allies Melted . | . . . Intel | -11 -10 -9 ------- Run | Scr Mat Mat Robot Analysis Total . | . . . Derelict Logs Recovered . | . . . Drone Launches . | . . . Drone Recoveries . | . . . Exploration | -11 -10 -9 ------------- Run | Scr Mat Mat Turns Passed 1419 | 48 1032 339 Spaces Moved 740 | 47 546 147 Core 2 | 2 . . Treads . | . . . Legs . | . . . Wheels 738 | 45 546 147 Hover . | . . . Flight . | . . . Fastest Speed 50 | 50 80 115 Average Speed 126 | 78 133 115 Slowest Speed 200 | 80 200 115 Overloaded Moves . | . . . Propulsion Burnouts . | . . . Robots Hopped . | . . . Cave-ins Triggered . | . . . Exploration Rate (%) 37 | 3 84 24 Regions Visited 2 Branch Regions . Pre-discovered Areas . | . . . Known Exits Taken . | . . . Unknown Exits Taken 2 | 1 1 . Scrap Searched . | . . . Spaces Dug . | . . . Terrain Destroyed 19 | . 19 . Melee . | . . . Projectile . | . . . AOE 19 | . 19 . Terrain Rammed . | . . . Walls Destroyed . | . . . Machines Disabled . | . . . Actions | -11 -10 -9 --------- Run | Scr Mat Mat Total 1031 | 54 734 243 Wait 106 | . 79 27 Move 738 | 46 545 147 Hop . | . . . Pick Up 32 | 2 24 6 Fast Attach 12 | 6 5 1 Attach 8 | . 3 5 Detach 1 | . 1 . Swap 11 | . 7 4 Drop 9 | . 3 6 Fire 114 | . 67 47 Melee . | . . . Ram . | . . . Kick . | . . . Crush . | . . . Escape Stasis . | . . . Rewire . | . . . Trap . | . . . Miscellaneous . | . . . Route ------- -11/Scrapyard -10/Materials (discovered 3 exits: *Mat x2 / *Min) -9/Materials (discovered 1 exit: [*Min]) History --------- Turn | Location | Event 9 | -11/Scrapyard | Discovered new exit (range 15) 49 | -11/Scrapyard | Entered Materials 290 | -10/Materials | Discovered new exit (range 12) 297 | -10/Materials | Discovered new exit (range 16) 304 | -10/Materials | Build established: Mutant 572 | -10/Materials | Identified exit to Mines 626 | -10/Materials | Repaired Lgt. Ion Engine 653 | -10/Materials | Repaired Ion Engine 680 | -10/Materials | Repaired Wheel 766 | -10/Materials | Core integrity fell below 50% 961 | -10/Materials | Discovered new exit (range 8) 1081 | -10/Materials | Entered another Materials area 1081 | -9/Materials | Evolved 2 slots: Propulsion x1, Utility x1 1287 | -9/Materials | Destroyed 7 combat bots 1316 | -9/Materials | Discovered new exit (range 9) 1369 | -9/Materials | Build established: Scavenger-Mutant 1404 | -9/Materials | Core integrity fell below 50% 1416 | -9/Materials | Core integrity fell below 20% 1420 | -9/Materials | Destroyed by Y-45 Defender with Heavy Assault Rifle Last Messages --------------- 01348_ Acquired 9 matter. 01349_ Acquired 1 matter. 01354_ Y-45 Defender destroyed. 01363_ Acquired 10 matter. 01366_ K-01 Serf collects debris. 01382_ Ion Engine destroyed. 01388_ G-34 Mercenary destroyed. 01389_ K-01 Serf collects debris. 01393_ Critical hit (Burn: +37). 01398_ K-01 Serf collects debris. 01398_ Y-45 Defender Heat Sink blasted off. 01400_ Lgt. Cannon destroyed. 01400_ Com. Wheel destroyed. 01402_ K-01 Serf collects debris. 01403_ Critical hit (Burn: +37). 01410_ Utility Shielding destroyed. 01410_ System corrupted by crushing effect (+2). 01411_ Com. Wheel destroyed. 01419_ B-36 Bruiser destroyed. 01419_ K-01 Serf collects debris. Map ----- +----------------------------------------------------+ | ?????????????????????????????????????# #???????? | | ?????????????????????????????????????# #???????? | | ?????????????????????????????????????# #???????? | | ?????????????????????????????????????# #???????? | | ?????????????????????????????????????# #???????? | | ?????????????????????????????????????# #???????? | | ?????????????????????????????????????# #???????? | | ?????????????????????????????????????# #???????? | | ?????????????????????????????????????#[#???????? | | ??????????????????????????#+?????###?# #???????? | | ?????????????? ???????# ???? ?#*#???????? | | ????????????? ??????? ??? ?# #???????? | | ????????????? ?????? T """ ?#%#???????? | | ????????????? ?????? """ ##+#####???? | | ????????????? ???????# """ # %% #???? | | ?????????????# ????????# #% #???? | | ?????????????# ????????# #"S #???? | | ?????????????# #???????#! #"""[! #???? | | ?????????????# #???????# # " [[ #???? | | ?????????????# #??????## #=%[=[ #???? | | ?????????????# #??????+ ! ##+######### | | ?????????????# #???????# !!% % | | ?????????????# ######### =%= % ### | | ?????????????# # ## !%! #?" | | ?????????????# =#! k Y ## """ #" | | ?????????????+ !+%% =%@####### * """ #" | | ?????????????# %=#!! !Y####### %! """ | | ?????????????# # +% != "T | | ?????????????# # %####### """% | | ?????????????# ########?????## ##########+## | | ?????????????# #?????????????# #??# #?? | | ?????????????# #???????????### #### """ #?? | | ?????????????# +???????????# % ## """ #?? | | ?????????????# #???????????# * ## """ #?? | | ?????????????# ????????????# =%= + #?? | | ?????????????# ????????????# ## """ #?? | | ?????????????# ????????????# ## """ #?? | | ?????????????# ????????????## ### """ #?? | | ?????????????# ?????????????# #?# #?? | | ?????????????# ?????????????# #?##########?? | | ?????????????? ?????????????# #????????????? | | ??????????????????????????????# #????????????? | | ?????????????????????????????? ????????????? | | ????????????????????????????? ????????????? | | ????????????????????????????? ????????????? | | ????????????????????????????# ????????????? | | ????????????????????????????# ????????????? | | ????????????????????????????# ????????????? | | ?????????????????????????????? ?????????????? | | ???????????????????????????????????????????????? | +----------------------------------------------------+ Best States ------------- Heat Dissipation 28 Energy Generation 10 Energy Capacity 450 Matter Stores 300 Matter Capacity 300 Sight Range 16 Terrain Scan Density 10 Utility Shielding 33 Evasion (%) 44 Offensive Hacking 10 Item Schematics ----------------- Utility Shielding | -9/Materials | Scanalyzed Com. Wheel | -9/Materials | Scanalyzed Robot Schematics ------------------ None Fabricated ------------ Nothing Alien Tech Used ----------------- None Achievements -------------- None Challenges ------------ None Game ------ Seed CoolantColdKit Manual? 0 Play Time 00:36:13 Cumulative 11.9 hours Start 2022.06.21 @ 19:17:29 End 2022.06.21 @ 20:10:10 Sessions 1 Manual Loads 0 Difficulty Rogue Special Mode None Game No. 7 Rogue 7 Adventurer 0 Explorer 0 Win Type - Total 0 Types 0/0/0/0/0/0/0/0/0 Lore% 13 Gallery% 8 Achievement% 9 Wizard Run 0 Options --------- ASCII 0 Keyboard 0 Movement Mouse Keybinds 0 Fullscreen 1 Font 18/X11 Map View 112x50 Tactical HUD 1 Map Filters NONE Filters NONE Steam 0 RUN: 289b3847-6bfc-4ca4-a038-038f8576af78